bitfinex/quotes_ETHUSD_20250725
["timestamp","ask_amount","ask_price","bid_price","bid_amount"]
[1753435657600,1e-08,3687.8,3687.7,11.09314822]
[1753435657792,1e-08,3687.8,3687.7,2.95962579]
[1753435660655,1e-08,3687.8,3687.7,2.95948385]
[1753435660936,1e-08,3687.8,3687.7,3.76210102]
[1753435661124,1e-08,3687.8,3687.7,8.17910102]
[1753435661330,1e-08,3687.8,3687.7,11.15198385]
[1753435661524,1e-08,3687.8,3687.7,12.53836248]
[1753435662125,1e-08,3687.8,3687.7,8.12136248]
[1753435663406,1e-08,3687.8,3687.7,5.95948385]
[1753435665983,1e-08,3687.8,3687.7,6.09468385]
[1753435666472,1e-08,3687.8,3687.7,5.95948385]
[1753435668289,1e-08,3687.8,3687.7,6.76798385]
[1753435668711,1e-08,3687.8,3687.7,11.18198385]
[1753435668901,1e-08,3687.8,3687.7,13.50464153]
[1753435669478,1e-08,3687.8,3687.7,13.50412205]
[1753435671510,1e-08,3687.8,3687.7,9.09012205]
[1753435671716,0.002,3689.3,3689.2,2.71061476]
[1753435671889,0.002,3689.3,3689.2,3.30797328]
[1753435672094,0.002,3689.3,3689.2,2.9578618]
[1753435673195,0.002,3689.3,3689.2,5.9578618]
[1753435673922,0.002,3689.3,3689.2,6.15770179]
[1753435675543,0.002,3689.3,3689.2,0.44708703]
[1753435675679,0.7951,3689.3,3689.2,0.44708703]
[1753435677036,7.91664129,3689.3,3689.2,0.44708703]
[1753435677384,0.7951,3689.3,3689.2,0.44708703]
[1753435677621,5.2061,3689.3,3689.2,0.44708703]
[1753435678019,0.002,3690.1,3689.3,0.7995]
[1753435678320,0.004,3691.2,3691.1,2.70921947]
[1753435678521,0.004,3692.6,3691.2,3.0]
[1753435678522,0.1352,3692.4,3691.2,3.0]
[1753435678724,0.004,3692.6,3692.1,3.0]
[1753435678920,0.004,3692.6,3691.5,4.411]
[1753435679221,0.004,3692.6,3691.0,0.7995]
[1753435679222,0.004,3692.6,3692.1,2.70848568]
[1753435679589,0.004,3692.6,3691.9,2.70858912]
[1753435680193,0.004,3692.6,3690.8,3.0]
[1753435680431,0.8165,3692.1,3691.2,0.24625828]
[1753435680615,0.8165,3692.1,3690.6,0.8025]
[1753435680787,0.8165,3692.1,3690.7,0.24631224]
[1753435680989,4.41,3692.0,3691.6,2.70885243]
[1753435681202,4.41,3692.0,3691.7,0.24622607]
[1753435681387,4.41,3692.0,3691.8,0.24622607]
[1753435681589,4.41,3692.0,3691.9,0.24622607]
[1753435682336,9.91,3692.2,3691.9,0.24622607]
[1753435682512,9.91,3692.2,3692.0,0.24622607]
[1753435682715,9.91,3692.2,3692.1,0.24622607]
[1753435682928,9.91,3692.2,3691.6,2.70880155]
[1753435683124,9.91,3692.2,3691.1,0.19919377]
[1753435683295,9.91,3692.2,3691.7,2.70872581]
[1753435683296,4.409,3692.1,3691.7,2.70872581]
[1753435683496,4.409,3692.1,3691.8,2.95425586]
[1753435683720,4.409,3692.1,3691.9,0.24555188]
[1753435683949,4.409,3692.1,3692.0,0.24555188]
[1753435684651,4.409,3692.1,3691.6,2.70881253]
[1753435685255,4.409,3692.1,3691.6,2.70885143]
[1753435685615,4.409,3692.1,3691.1,0.20445442]
[1753435685616,5.502,3692.2,3691.2,3.0]
[1753435685815,4.409,3692.1,3691.7,2.70877579]
[1753435686244,4.409,3692.1,3691.8,0.24546937]
[1753435686552,4.409,3692.1,3691.9,0.24546937]
[1753435686756,4.409,3692.1,3691.6,2.70882991]
[1753435686957,1e-08,3693.2,3691.9,1.628]
[1753435687157,0.7793,3695.5,3693.7,2.70731245]
[1753435687376,0.7793,3695.5,3694.2,2.70694602]
[1753435687509,0.004,3695.8,3694.6,2.70665295]
[1753435687707,0.004,3695.8,3694.6,5.73371947]
[1753435687938,0.004,3695.8,3694.6,6.47125295]
[1753435688138,8.20487537,3697.1,3694.3,2.46162219]
[1753435688139,5.5,3697.1,3697.0,0.7646]
[1753435688452,9.437,3697.1,3695.7,0.7976]
[1753435688649,5.0,3697.1,3697.0,0.1352]
[1753435688824,6.505,3697.0,3695.7,1.00260014]
[1753435689225,9.61399999,3697.1,3695.7,1.00260014]
[1753435689226,5.0,3697.1,3696.6,0.7976]
[1753435689655,5.0,3697.1,3697.0,5.70489586]
[1753435691172,9.749,3697.1,3697.0,3.24240173]
[1753435691354,9.749,3697.1,3696.1,0.7893]
[1753435691852,5.0,3697.1,3696.2,2.7054813]
[1753435692054,5.0,3697.1,3696.1,3.7893]
[1753435692363,4.751,3697.0,3696.1,0.7893]
[1753435692896,5.0,3697.1,3696.1,0.7893]
[1753435693099,4.755,3697.0,3696.1,0.7893]
[1753435693250,4.755,3697.0,3695.7,0.20500014]
[1753435693450,2.70490435,3697.0,3695.8,2.70570608]
[1753435693751,5.0,3697.1,3695.5,3.7893]
[1753435693954,7.45792778,3697.0,3695.6,0.2410468]
[1753435694172,5.0,3697.1,3695.7,7.33210238]
[1753435694389,4.752,3696.9,3695.8,3.0]
[1753435694551,5.0,3697.1,3697.0,5.70089586]
[1753435695288,5.0,3697.1,3697.0,2.70489586]
[1753435695592,9.761,3697.1,3697.0,2.70489586]
[1753435695774,9.711,3697.1,3697.0,5.70489586]
[1753435695978,4.95,3697.1,3697.0,3.0]
[1753435696188,9.71,3697.1,3697.0,3.0]
[1753435696392,9.71,3697.1,3695.9,3.98261142]
[1753435696393,9.71,3697.1,3696.2,0.7865]
[1753435696597,4.95,3697.1,3696.2,0.7865]
[1753435696890,4.95,3697.1,3697.0,2.70489586]
[1753435697066,4.95,3697.1,3697.0,3.0]
[1753435697272,9.712,3697.1,3697.0,3.0]
[1753435697468,4.95,3697.1,3697.0,5.70489586]
[1753435697791,4.95,3697.1,3697.0,3.0]
[1753435697792,9.713,3697.1,3697.0,3.0]
[1753435698096,9.713,3697.1,3696.2,0.7865]
[1753435698280,12.41782499,3697.1,3696.2,2.70542005]
[1753435698488,9.713,3697.1,3696.0,3.0]
[1753435698707,2.70502835,3696.9,3695.8,3.0]
[1753435698879,2.70502835,3696.9,3695.7,2.70584733]
[1753435698880,4.761,3696.8,3695.7,3.0]
[1753435699087,4.761,3696.8,3695.5,0.19886662]
[1753435699282,2.70519067,3696.6,3695.4,2.70600445]
[1753435699485,2.70511976,3696.7,3696.6,0.1352]
[1753435699771,2.70511976,3696.7,3694.5,0.8138]
[1753435699772,6.497,3696.5,3694.5,0.8138]
[1753435699968,2.70594293,3695.6,3694.7,2.70656737]
[1753435700183,0.8037,3696.0,3694.7,2.70657969]
[1753435700184,4.756,3695.5,3694.7,2.70657969]
[1753435700384,0.8037,3696.0,3694.8,0.62270669]
[1753435700597,2.70577412,3695.8,3695.4,0.1352]
[1753435700805,4.754,3695.7,3694.8,0.82787496]
[1753435700960,0.8037,3696.0,3694.4,2.70674061]
[1753435701165,4.752,3695.9,3695.5,0.1352]
[1753435701365,2.70592055,3695.6,3695.5,0.1352]
[1753435701696,7.45792055,3695.6,3695.5,0.1352]
[1753435702003,0.8172,3696.6,3695.5,0.1352]
[1753435702206,0.8172,3696.6,3694.8,0.20212333]
[1753435702207,4.749,3696.5,3695.7,0.1352]
[1753435702374,0.8172,3696.6,3696.5,0.1352]
[1753435702594,5.5632,3696.6,3696.5,0.1352]
[1753435702790,6.88103338,3697.2,3696.7,2.70505855]
[1753435702791,0.2495,3697.2,3696.7,2.70505855]
[1753435702989,4.76,3697.0,3696.7,2.70507618]
[1753435703191,4.76,3697.0,3696.8,2.70500863]
[1753435703517,4.758,3696.9,3696.7,2.70509568]
[1753435703715,4.758,3696.9,3696.8,2.70504219]
[1753435703918,0.2495,3697.2,3697.0,2.70489586]
[1753435704120,9.707,3697.1,3697.0,2.70489586]
[1753435704294,4.95,3697.1,3697.0,2.70489586]
[1753435704814,4.95,3697.1,3697.0,5.70489586]
[1753435705031,9.702,3697.1,3697.0,5.70489586]
[1753435705423,4.95,3697.1,3697.0,5.70489586]
[1753435706746,9.697,3697.1,3697.0,5.70489586]
[1753435706912,9.694,3697.1,3697.0,5.70489586]
[1753435707505,4.95,3697.1,3697.0,5.70489586]
[1753435707705,9.687,3697.1,3697.0,5.70489586]
[1753435707927,4.95,3697.1,3697.0,5.70489586]
[1753435708126,9.687,3697.1,3697.0,5.70489586]
[1753435708434,9.684,3697.1,3697.0,5.70489586]
[1753435708637,4.95,3697.1,3697.0,5.70489586]
[1753435708931,1e-08,3697.2,3697.1,5.70482269]
[1753435709102,1e-08,3697.2,3697.1,6.74087465]
[1753435709939,1e-08,3697.9,3697.8,2.70431067]
[1753435710234,0.2495,3698.9,3698.8,5.70357953]
[1753435710825,0.2495,3698.9,3698.8,5.90397538]
[1753435711204,4.9845,3698.9,3698.8,5.90397538]
[1753435711400,4.9845,3698.9,3698.8,0.20039585]
[1753435711627,4.9825,3698.9,3698.6,3.0]
[1753435711811,4.9825,3698.9,3698.2,2.70395914]
[1753435712012,4.9825,3698.9,3698.5,3.0]
[1753435712332,4.9825,3698.9,3697.8,3.95538852]
[1753435712637,0.2495,3698.9,3697.9,0.02704237]
[1753435712836,4.73,3698.8,3698.3,2.70394446]
[1753435713039,4.73,3698.8,3698.4,2.70386073]
[1753435713343,0.2495,3698.9,3698.8,5.70357953]
[1753435713513,4.9755,3698.9,3698.8,5.70357953]
[1753435713904,4.9755,3698.9,3698.8,3.0]
[1753435714140,4.9755,3698.9,3698.8,5.70357953]
[1753435715207,4.9755,3698.9,3698.8,3.0]
[1753435715755,4.9755,3698.9,3698.8,5.70357953]
[1753435716622,4.9585,3698.9,3698.8,5.70357953]
[1753435716820,4.9585,3698.9,3698.8,3.0]
[1753435717552,4.9585,3698.9,3698.8,3.24396727]
[1753435717739,4.9585,3698.9,3698.8,5.9475468]
[1753435717907,4.9585,3698.9,3698.8,3.24396727]
[1753435718109,4.9585,3698.9,3698.8,3.0]
[1753435718322,4.9585,3698.9,3698.7,0.1352]
[1753435719858,2.70357953,3698.8,3698.7,0.1352]
[1753435720932,2.70392482,3698.4,3697.8,3.19988852]
[1753435721119,7.39101264,3698.3,3697.9,0.2445924]
[1753435721334,7.39096638,3698.3,3698.2,0.1352]
[1753435721538,2.95304016,3698.9,3698.2,0.3797924]
[1753435721739,2.70372851,3698.6,3698.3,0.24455009]
[1753435721969,4.684,3698.5,3698.4,0.24455009]
[1753435722174,4.684,3698.5,3697.9,0.02704237]
[1753435722331,4.684,3698.5,3698.4,3.1352]
[1753435722538,4.684,3698.5,3698.4,5.83907194]
[1753435723563,4.684,3698.5,3698.4,3.37975826]
[1753435723742,4.684,3698.5,3698.4,5.83907194]
[1753435724842,4.671,3698.5,3698.4,2.83907194]
[1753435725366,4.671,3698.5,3698.4,5.83907194]
[1753435727466,0.2495,3698.9,3698.6,2.70371419]
[1753435727669,4.662,3698.8,3698.6,2.70371419]
[1753435727872,4.662,3698.8,3698.2,2.70395617]
[1753435728032,4.662,3698.8,3698.7,0.1352]
[1753435730049,7.36557953,3698.8,3698.7,0.1352]
[1753435730459,4.662,3698.8,3698.7,0.1352]
[1753435730780,7.36557953,3698.8,3698.7,0.1352]
[1753435731947,8.14897953,3698.8,3698.0,3.0]
[1753435732176,2.70365263,3698.7,3698.6,0.1352]
[1753435733072,0.7834,3698.8,3698.6,0.1352]
[1753435733240,4.636,3698.7,3698.6,0.1352]
[1753435733780,4.635,3698.7,3698.6,0.1352]
[1753435733986,0.7834,3698.8,3698.6,0.1352]
[1753435734158,4.633,3698.7,3698.6,0.1352]
[1753435735357,7.33665263,3698.7,3698.6,0.1352]
[1753435735687,2.70365263,3698.7,3698.6,0.1352]
[1753435735890,7.33665263,3698.7,3698.6,0.1352]
[1753435736090,0.7834,3698.8,3698.6,0.1352]
[1753435736409,4.624,3698.7,3698.6,0.1352]
[1753435736560,4.624,3698.7,3698.6,2.83892573]
[1753435737170,0.2495,3698.9,3698.6,2.83892573]
[1753435737372,0.2495,3698.9,3698.6,0.1352]
[1753435737573,4.62,3698.8,3698.7,2.70365263]
[1753435737788,0.2495,3698.9,3698.8,2.83877953]
[1753435737981,4.8695,3698.9,3698.8,2.83877953]
[1753435738181,0.2495,3698.9,3698.8,2.83877953]
[1753435738362,4.8665,3698.9,3698.8,2.83877953]
[1753435738565,0.2495,3698.9,3698.8,2.83877953]
[1753435738801,4.8665,3698.9,3698.8,2.83877953]
[1753435739467,0.2495,3698.9,3698.8,2.83877953]
[1753435739772,4.8645,3698.9,3698.8,2.83877953]
[1753435740179,4.8605,3698.9,3698.8,0.1352]
[1753435740379,0.2495,3698.9,3698.8,2.83877953]
[1753435740573,4.8605,3698.9,3698.8,0.1352]
[1753435741376,4.8605,3698.9,3698.8,0.38126658]
[1753435741778,4.8545,3698.9,3698.8,3.08484611]
[1753435742295,4.8545,3698.9,3698.8,0.38126658]
[1753435745866,0.2495,3698.9,3698.8,0.38126658]
[1753435746068,4.8435,3698.9,3698.8,0.38126658]
[1753435746308,4.8385,3698.9,3698.8,3.08484611]
[1753435746479,4.8385,3698.9,3698.8,0.38126658]
[1753435747096,4.8385,3698.9,3698.8,0.24606658]
[1753435747587,4.8385,3698.9,3698.8,0.24612399]
[1753435748903,0.2495,3698.9,3698.8,0.24612399]
[1753435749068,4.8285,3698.9,3698.8,0.24612399]
[1753435750604,7.53200644,3698.9,3698.8,0.24612399]
[1753435750927,8.34300644,3698.9,3698.8,0.24612399]
[1753435751094,1.0625,3698.9,3698.8,0.24612399]
[1753435751297,4.8245,3698.9,3698.8,0.24612399]
[1753435753094,4.8255,3698.9,3698.8,0.24612399]
[1753435753329,4.8255,3698.9,3698.8,0.24615784]
[1753435753704,0.2515,3698.9,3698.8,0.24615784]
[1753435754038,4.8215,3698.9,3698.8,0.24615784]
[1753435755818,7.52500644,3698.9,3698.8,0.24615784]
[1753435756635,4.8215,3698.9,3698.8,0.24615784]
[1753435756995,4.8215,3698.9,3698.8,0.38135784]
[1753435757196,4.8115,3698.9,3698.8,0.38135784]
[1753435757816,0.2515,3698.9,3698.8,0.38135784]
[1753435758018,4.8055,3698.9,3698.8,3.08493737]
[1753435758429,0.2515,3698.9,3698.8,3.08493737]
[1753435758821,5.5,3699.6,3699.1,2.703311]
[1753435759020,5.5,3699.6,3699.5,2.83826798]
[1753435759225,10.053,3699.6,3699.5,2.83826798]
[1753435759426,10.053,3699.6,3699.5,3.08424906]
[1753435760193,10.053,3699.6,3699.5,3.86814906]
[1753435761233,5.5,3699.6,3699.5,6.89517973]
[1753435761439,5.5,3699.6,3699.5,6.86814906]
[1753435761743,10.047,3699.6,3699.5,6.86814906]
[1753435762504,5.5,3699.6,3699.5,6.86814906]
[1753435764420,4.537,3700.7,3699.5,0.24598108]
[1753435764733,4.537,3700.7,3699.6,4.07728108]
[1753435764907,4.537,3700.7,3699.7,0.24598108]
[1753435765110,4.537,3700.7,3699.6,0.8313]
[1753435765111,4.537,3700.7,3699.8,3.24598108]
[1753435765328,4.537,3700.7,3700.2,2.70254494]
[1753435765524,5.5,3700.8,3700.3,2.7024791]
[1753435765776,5.5,3700.8,3700.4,2.70235007]
[1753435765935,4.534,3700.7,3699.6,0.8313]
[1753435766130,4.534,3700.7,3699.7,0.24513936]
[1753435766331,4.534,3700.7,3699.6,1.03339822]
[1753435766332,4.534,3700.7,3699.9,3.0]
[1753435766532,4.534,3700.7,3700.3,2.70242947]
[1753435766962,4.534,3700.7,3700.4,0.24492015]
[1753435767148,4.534,3700.7,3700.5,0.24492015]
[1753435767448,5.5,3700.8,3700.6,0.24492015]
[1753435767655,5.5,3700.8,3700.7,2.94711162]
[1753435769944,5.5,3700.8,3700.7,0.24492015]
[1753435770144,5.5,3700.8,3700.7,2.94711162]
[1753435770894,5.5,3700.8,3700.7,5.94711162]
[1753435771064,5.5,3700.8,3700.7,5.94648219]
[1753435772288,5.5,3700.8,3700.7,2.94648219]
[1753435772791,0.002,3701.1,3701.0,2.70197243]
[1753435772987,0.002,3701.1,3701.0,5.97328287]
[1753435773193,0.002,3701.1,3701.0,16.04622649]
[1753435773395,2.69924052,3704.8,3701.9,2.70126254]
[1753435773706,0.1,3706.4,3701.0,18.61212418]
[1753435773707,0.7806,3704.3,3702.9,3.8309]
[1753435774034,4.548,3704.7,3703.0,7.94247797]
[1753435774308,0.7961,3705.0,3702.9,0.8309]
[1753435774467,5.3451,3704.4,3704.0,0.1352]
[1753435774656,2.69990916,3703.9,3702.9,0.20142487]
[1753435774954,2.69990916,3703.9,3702.4,0.7682]
[1753435774955,0.7761,3703.6,3702.4,0.7682]
[1753435775159,0.1352,3703.8,3702.4,0.96749644]
[1753435775355,4.605,3703.9,3703.5,0.1352]
[1753435775708,2.70006668,3703.7,3702.8,0.7682]
[1753435775859,3.4921027,3703.7,3703.6,0.1352]
[1753435776060,0.7921,3703.7,3703.3,0.1352]
[1753435776359,0.8,3704.6,3703.6,2.83527418]
[1753435776579,0.8,3705.6,3704.4,11.96855583]
[1753435776808,0.8,3705.6,3704.4,12.10375583]
[1753435776809,4.628,3705.4,3704.4,12.10375583]
[1753435777003,4.626,3704.9,3704.4,0.1352]
[1753435777303,0.8,3705.6,3704.4,2.83469249]
[1753435777508,4.625,3705.1,3704.4,12.10375583]
[1753435777786,5.5,3705.7,3704.4,15.10375583]
[1753435777985,5.5,3705.7,3704.4,6.03451558]
[1753435778191,5.25,3705.7,3704.5,0.7699]
[1753435778560,5.25,3705.7,3704.7,3.0]
[1753435778754,5.25,3705.7,3705.1,3.7906]
[1753435778989,5.25,3705.7,3705.4,2.69876362]
[1753435779211,5.25,3705.7,3705.6,2.6986183]
[1753435779990,5.25,3705.7,3705.6,6.5315183]
[1753435780190,0.71651322,3705.7,3705.6,6.5315183]
[1753435780761,0.2448,3706.1,3706.0,2.69832703]
[1753435781084,0.2448,3706.1,3706.0,6.48482703]
[1753435781481,0.2448,3706.1,3706.0,0.7865]
[1753435781694,4.8838,3706.1,3706.0,3.48482703]
[1753435781903,4.8838,3706.1,3706.0,0.7865]
[1753435782106,0.2448,3706.1,3705.6,2.6986183]
[1753435782292,0.2448,3706.1,3706.0,2.69832703]
[1753435782675,4.8818,3706.1,3705.8,2.69840254]
[1753435782870,0.2448,3706.1,3705.5,0.8309]
[1753435783083,4.635,3706.0,3705.9,2.69839984]
[1753435783285,4.635,3706.0,3705.6,2.6986183]
[1753435783508,0.2448,3706.1,3706.0,2.69832703]
[1753435783672,4.8788,3706.1,3706.0,2.69832703]
[1753435783873,4.8788,3706.1,3705.0,2.69898869]
[1753435784074,2.69832703,3706.0,3705.0,2.69898733]
[1753435784304,2.69849699,3705.8,3704.9,0.7681]
[1753435784506,0.2448,3706.1,3704.4,0.19982309]
[1753435784815,2.69855737,3705.7,3704.8,2.69915019]
[1753435785109,0.2448,3706.1,3705.2,2.69884943]
[1753435785408,0.2448,3706.1,3705.4,2.69876011]
[1753435785608,4.637,3706.0,3704.8,0.7751]
[1753435785810,0.2448,3706.1,3704.8,0.7751]
[1753435786000,4.636,3706.0,3704.8,3.7751]
[1753435786307,0.2448,3706.1,3705.5,2.69862268]
[1753435786308,4.636,3705.9,3705.5,2.69862268]
[1753435786508,4.636,3705.9,3705.2,2.6988672]
[1753435786719,0.7872,3705.9,3704.9,2.69912818]
[1753435786934,4.633,3705.8,3704.8,0.7751]
[1753435787077,4.632,3705.7,3704.8,0.7751]
[1753435787278,0.2448,3706.1,3704.8,0.7751]
[1753435787805,4.632,3706.0,3704.8,3.7751]
[1753435787999,4.632,3706.0,3705.5,2.69865282]
[1753435788198,0.2448,3706.1,3705.8,2.69844921]
[1753435788402,4.629,3706.0,3705.9,0.1352]
[1753435788911,4.626,3706.0,3705.9,0.1352]
[1753435789071,0.2448,3706.1,3705.9,0.1352]
[1753435789277,4.625,3706.0,3705.9,0.1352]
[1753435789480,4.625,3706.0,3704.4,0.20054384]
[1753435789820,2.69845129,3705.9,3705.1,2.69893462]
[1753435790106,2.69847505,3705.8,3705.1,2.69893462]
[1753435790287,2.69847505,3705.8,3705.2,2.69890551]
[1753435790489,4.625,3706.0,3705.2,2.6989065]
[1753435790713,7.33344685,3705.9,3705.2,2.6989065]
[1753435790921,4.632,3705.8,3705.2,2.6989065]
[1753435791080,2.69834043,3706.0,3705.2,2.69884891]
[1753435791280,0.2448,3706.1,3705.6,2.69857051]
[1753435791629,0.2448,3706.1,3705.7,2.69847601]
[1753435791831,4.63,3706.0,3704.5,2.69941962]
[1753435791981,4.63,3706.0,3705.4,2.69875305]
[1753435792181,0.2448,3706.1,3705.1,2.69898248]
[1753435792497,0.2448,3706.1,3706.0,2.69832703]
[1753435792693,0.2448,3706.1,3706.0,2.89616535]
[1753435793006,4.8738,3706.1,3706.0,0.19783832]
[1753435793211,0.2448,3706.1,3705.9,2.69839272]
[1753435793546,0.2448,3706.1,3705.7,2.69853111]
[1753435793547,0.2448,3706.1,3706.0,2.69832703]
[1753435793995,0.2448,3706.1,3706.0,3.46092703]
[1753435794178,1e-08,3706.1,3706.0,6.4879103]
[1753435794381,1e-08,3706.1,3706.0,11.10392703]
[1753435794687,1e-08,3706.1,3706.0,12.73192703]
[1753435795203,1e-08,3706.1,3706.0,11.10392703]
[1753435795399,1e-08,3706.9,3706.8,2.69774468]
[1753435795712,1e-08,3706.9,3706.8,5.69774468]
[1753435799515,1e-08,3706.9,3706.8,5.83294468]
[1753435800013,1e-08,3706.9,3706.8,10.45094468]
[1753435800180,1e-08,3706.9,3706.8,5.83294468]
[1753435800389,1e-08,3706.9,3706.8,10.6901931]
[1753435801117,1e-08,3706.9,3706.8,11.4661931]
[1753435801619,1e-08,3706.9,3706.8,20.6314931]
[1753435802321,1e-08,3706.9,3706.8,20.6244931]
[1753435802516,1e-08,3706.9,3706.8,16.0154931]
[1753435802898,1e-08,3706.9,3706.8,12.2394931]
[1753435803098,1e-08,3706.9,3706.8,9.54174842]
[1753435803416,3.52937191,3706.9,3706.8,9.40654842]
[1753435803817,3.66457191,3706.9,3706.8,9.1653]
[1753435804223,8.13437191,3706.9,3706.8,9.3005]
[1753435804414,3.52937191,3706.9,3706.8,9.1653]
[1753435804592,0.83170001,3706.9,3706.8,9.1653]
[1753435804786,1e-08,3706.9,3706.8,9.1653]
[1753435804992,1e-08,3706.9,3706.8,9.40690014]
[1753435805392,2.69767191,3706.9,3706.8,9.40690014]
[1753435805632,1e-08,3706.9,3706.8,9.40690014]
[1753435805928,0.78010001,3706.9,3706.8,9.1653]
[1753435806113,8.08577191,3706.9,3706.8,9.1653]
[1753435806491,8.08577191,3706.9,3704.1,2.6996677]
[1753435806492,3.46217266,3705.8,3704.1,2.6996677]
[1753435806688,5.3737,3705.8,3704.0,0.8088]
[1753435806900,4.612,3705.7,3705.0,2.69899531]
[1753435807101,3.46219348,3705.8,3705.1,2.69897021]
[1753435807427,3.46219348,3705.8,3704.4,0.02699492]
[1753435807428,0.7637,3705.8,3705.5,2.69866025]
[1753435808013,0.7637,3705.8,3704.9,3.02699128]
[1753435808322,0.7637,3705.8,3705.0,0.24223848]
[1753435808626,0.7637,3705.8,3704.9,2.69912567]
[1753435808825,0.7637,3705.8,3705.0,0.26937121]
[1753435808995,4.612,3705.7,3705.1,0.24235165]
[1753435809197,4.612,3705.7,3705.5,2.6986681]
[1753435809404,0.7637,3705.8,3705.5,2.6986681]
[1753435809804,0.7637,3705.8,3705.4,2.69870617]
[1753435810102,0.7637,3705.8,3705.6,2.69860173]
[1753435810315,0.7637,3705.8,3705.4,2.69874794]
[1753435810542,1e-08,3706.9,3706.8,2.69774468]
[1753435810740,1e-08,3706.9,3706.8,10.30374468]
[1753435811038,1e-08,3706.9,3706.8,5.93983576]
[1753435811333,1e-08,3706.9,3706.8,11.62663858]
[1753435811905,1e-08,3706.9,3706.8,8.53563858]
[1753435812101,1e-08,3706.9,3706.8,13.99585158]
[1753435812326,5.5,3708.2,3708.1,2.69679889]
[1753435813143,6.2757,3708.2,3706.8,3.20010282]
[1753435813316,6.2757,3708.2,3707.6,2.69712445]
[1753435813641,6.2757,3708.2,3707.8,2.69695238]
[1753435813826,6.2757,3708.2,3707.8,2.69701679]
[1753435814026,5.5,3708.2,3708.1,2.69679889]
[1753435814340,5.5,3708.2,3707.3,0.8111]
[1753435814545,5.5,3708.2,3707.6,2.6971562]
[1753435814753,8.97982617,3708.2,3708.1,0.1352]
[1753435815055,6.2831,3708.2,3708.1,0.1352]
[1753435815254,6.2831,3708.2,3707.8,2.69696317]
[1753435815414,6.2831,3708.2,3707.9,2.69692117]
[1753435815927,6.2831,3708.2,3706.8,2.89783735]
[1753435815928,2.69680882,3708.1,3707.3,2.69731296]
[1753435816245,6.2831,3708.2,3706.8,0.20010282]
[1753435816461,6.2831,3708.2,3706.9,0.24182354]
[1753435816622,4.718,3708.1,3707.0,0.24183084]
[1753435816952,7.4149316,3708.0,3707.2,2.69744646]
[1753435817259,4.718,3708.0,3706.8,0.20517571]
[1753435817429,4.718,3708.0,3705.1,2.69897393]
[1753435817430,0.8191,3707.9,3705.1,2.69897393]
[1753435817613,2.69731119,3707.4,3706.6,2.69783165]
[1753435817817,0.8307,3707.7,3705.6,2.6985507]
[1753435818123,2.69752251,3707.2,3706.4,2.69797302]
[1753435818331,4.717,3707.1,3706.5,0.24210202]
[1753435818545,4.717,3707.1,3706.5,2.94005999]
[1753435818707,3.49471094,3707.0,3706.4,0.19893356]
[1753435818908,3.49471094,3707.0,3706.3,2.69804104]
[1753435819109,3.49471094,3707.0,3706.0,2.69829357]
[1753435819110,0.7971,3707.0,3706.4,2.69802503]
[1753435819312,0.7971,3707.0,3706.0,0.02698327]
[1753435819313,0.7971,3707.0,3706.8,0.001]
[1753435819514,2.6976719,3706.9,3706.8,0.001]
[1753435820942,2.6976719,3706.9,3705.3,0.02698836]
[1753435820943,0.8304,3705.6,3704.6,0.001]
[1753435821242,4.707,3705.5,3704.7,0.24292408]
[1753435821446,2.69885104,3705.3,3704.8,0.24292408]
[1753435821623,2.69904551,3705.1,3704.9,0.24292408]
[1753435821827,2.69876396,3705.4,3705.0,0.24292408]
[1753435822056,2.69892809,3705.2,3705.1,0.24309047]
[1753435822260,2.69927389,3704.7,3704.6,0.001]
[1753435822552,7.40527389,3704.7,3704.6,0.001]
[1753435822715,8.19467389,3704.7,3704.6,0.19843553]
[1753435822916,8.19467389,3704.7,3704.6,0.001]
[1753435823571,0.7894,3704.7,3704.6,0.001]
[1753435823849,5.4914,3704.7,3704.6,0.20811196]
[1753435824958,5.4914,3704.7,3704.6,0.001]
[1753435825157,8.19067389,3704.7,3704.6,0.1362]
[1753435825450,0.7894,3704.7,3704.6,0.1362]
[1753435825667,3.48867389,3704.7,3704.6,0.1362]
[1753435825823,3.48867389,3704.7,3704.6,0.001]
[1753435826748,3.48867389,3704.7,3704.6,1e-08]
[1753435828730,8.19267389,3704.7,3704.6,1e-08]
[1753435829132,0.7894,3704.7,3704.6,1e-08]
[1753435829327,5.4934,3704.7,3704.6,1e-08]
[1753435829522,8.19267389,3704.7,3704.6,1e-08]
[1753435829752,5.4934,3704.7,3704.6,1e-08]
[1753435830453,5.4874,3704.7,3704.6,1e-08]
[1753435830636,0.8193,3705.2,3704.6,2.69934676]
[1753435830955,7.39699545,3705.1,3704.6,1e-08]
[1753435831156,4.698,3705.1,3704.8,0.1352]
[1753435831926,4.692,3705.1,3704.9,2.69911206]
[1753435832260,5.4932,3705.1,3704.6,1e-08]
[1753435832457,2.69927389,3704.7,3704.6,1e-08]
[1753435832658,7.39527389,3704.7,3704.6,1e-08]
[1753435832960,4.697,3704.7,3704.6,1e-08]
[1753435833170,7.39627389,3704.7,3704.6,1e-08]
[1753435833821,3.50020048,3705.1,3704.6,1e-08]
[1753435834027,7.39606077,3705.0,3704.6,1e-08]
[1753435834244,2.69708956,3707.8,3706.7,2.69781746]
[1753435834586,0.42213891,3708.8,3708.1,2.69679889]
[1753435834587,0.48911912,3708.2,3708.1,2.69679889]
[1753435834742,0.48911912,3708.2,3708.1,5.72376687]
[1753435834950,1e-08,3708.2,3708.1,6.553794]
[1753435835654,5.46525048,3709.4,3709.3,2.69592645]
[1753435836256,6.2772,3710.6,3709.3,2.69592645]
[1753435836257,4.916,3710.3,3710.2,2.69527249]
[1753435836449,1.93343957,3710.5,3710.4,2.69512721]
[1753435836653,5.504,3710.6,3710.5,2.69505457]